[Event "Early-Titled-Tuesday-Blitz-January-30-2024"]
[Site "Chess.com"]
[Date "2024.01.30"]
[Round "6"]
[White "Sajith_Peiris"]
[Black "Sam_ChessMood"]
[Result "0-1"]
[WhiteElo "2280"]
[BlackElo "2896"]
[TimeControl "180+1"]
[EndTime "9:07:53 PST"]
[Termination "Sam_ChessMood won by resignation"]

1. e4 {[%clk 0:02:21.5]} 1... c5 {[%clk 0:02:57.9]} 2. Nc3 {[%clk 0:02:20.5]}
2... d6 {[%clk 0:02:57.5]} 3. d3 {[%clk 0:02:19.1]} 3... g6 {[%clk 0:02:57]} 4.
g3 {[%clk 0:02:19.4]} 4... Bg7 {[%clk 0:02:57.1]} 5. Bg2 {[%clk 0:02:19.5]} 5...
Nc6 {[%clk 0:02:57.4]} 6. Nge2 {[%clk 0:02:19.3]} 6... h5 {[%clk 0:02:57.4]} 7.
Be3 {[%clk 0:02:18.5]} 7... h4 {[%clk 0:02:57.1]} 8. h3 {[%clk 0:02:12.8]} 8...
hxg3 {[%clk 0:02:56.2]} 9. fxg3 {[%clk 0:02:11.3]} 9... Nf6 {[%clk 0:02:56.5]}
10. Qd2 {[%clk 0:02:10.3]} 10... Rb8 {[%clk 0:02:48.1]} 11. g4 {[%clk
0:02:00.6]} 11... b5 {[%clk 0:02:47.9]} 12. Ng3 {[%clk 0:01:57.8]} 12... b4
{[%clk 0:02:46.4]} 13. Nce2 {[%clk 0:01:57.4]} 13... Nd7 {[%clk 0:02:44.8]} 14.
O-O {[%clk 0:01:52.5]} 14... Bxb2 {[%clk 0:02:42.4]} 15. Rab1 {[%clk 0:01:50.9]}
15... Bg7 {[%clk 0:02:42]} 16. Qe1 {[%clk 0:01:48.1]} 16... Nde5 {[%clk
0:02:39.6]} 17. Qf2 {[%clk 0:01:47.1]} 17... Be6 {[%clk 0:02:38.5]} 18. d4
{[%clk 0:01:32.5]} 18... cxd4 {[%clk 0:02:34.8]} 19. Nxd4 {[%clk 0:01:31.9]}
19... Nxd4 {[%clk 0:02:34.6]} 20. Bxd4 {[%clk 0:01:31.5]} 20... O-O {[%clk
0:02:34.5]} 21. Bxa7 {[%clk 0:01:26.5]} 21... Ra8 {[%clk 0:02:33.8]} 22. Rxb4
{[%clk 0:01:25.3]} 22... Nc6 {[%clk 0:02:29.6]} 23. Bb6 {[%clk 0:01:23.8]} 23...
Qd7 {[%clk 0:02:24.9]} 24. Rbb1 {[%clk 0:01:20.8]} 24... Rxa2 {[%clk 0:02:24.8]}
25. Kh2 {[%clk 0:01:07.4]} 25... Be5 {[%clk 0:02:23.5]} 26. Kh1 {[%clk
0:01:03.6]} 26... Rc8 {[%clk 0:02:22.5]} 27. Rbc1 {[%clk 0:00:44.9]} 27... Nb4
{[%clk 0:02:21.2]} 28. Bd4 {[%clk 0:00:36.8]} 28... Nd3 {[%clk 0:02:18.6]} 29.
Qe3 {[%clk 0:00:22]} 29... Nxc1 {[%clk 0:02:16.6]} 30. Bxe5 {[%clk 0:00:22.2]}
30... dxe5 {[%clk 0:02:16]} 31. Rxc1 {[%clk 0:00:20.1]} 31... Rcxc2 {[%clk
0:02:14.7]} 32. Rxc2 {[%clk 0:00:20.4]} 32... Rxc2 {[%clk 0:02:14.8]} 33. Nf5
{[%clk 0:00:15.4]} 33... Bxf5 {[%clk 0:02:04.4]} 34. gxf5 {[%clk 0:00:14.8]}
34... Qd1+ {[%clk 0:02:01.4]} 35. Kh2 {[%clk 0:00:14.9]} 35... Qd2 {[%clk
0:02:01.7]} 36. Qg3 {[%clk 0:00:11]} 36... Qf4 {[%clk 0:02:00.1]} 37. fxg6
{[%clk 0:00:10.9]} 37... fxg6 {[%clk 0:01:58.5]} 38. Qxf4 {[%clk 0:00:09.6]}
38... exf4 {[%clk 0:01:58.2]} 39. Kg1 {[%clk 0:00:09.5]} 39... e5 {[%clk
0:01:58.3]} 40. Bf3 {[%clk 0:00:09.4]} 40... Rd2 {[%clk 0:01:58.1]} 41. Kf1
{[%clk 0:00:09.6]} 41... Kg7 {[%clk 0:01:58.2]} 42. Kg1 {[%clk 0:00:09.6]} 42...
Kf6 {[%clk 0:01:54.8]} 43. Kf1 {[%clk 0:00:10.1]} 43... Kg5 {[%clk 0:01:54.4]}
44. Ke1 {[%clk 0:00:10.7]} 44... Rb2 {[%clk 0:01:53.8]} 45. Kd1 {[%clk
0:00:10.6]} 45... Kh4 {[%clk 0:01:53.5]} 46. Bg4 {[%clk 0:00:10.9]} 46... Rb4
{[%clk 0:01:51.9]} 47. Ke2 {[%clk 0:00:09.4]} 47... Rxe4+ {[%clk 0:01:51.6]} 48.
Kd3 {[%clk 0:00:09.9]} 48... Re3+ {[%clk 0:01:52.5]} 49. Kc4 {[%clk 0:00:10.4]}
49... g5 {[%clk 0:01:52.4]} 50. Kd5 {[%clk 0:00:10.7]} 50... f3 {[%clk 0:01:52]}
0-1

[Event "Early-Titled-Tuesday-Blitz-January-30-2024"]
[Site "Chess.com"]
[Date "2024.01.30"]
[Round "6"]
[White "mbojan"]
[Black "Lady_Nika"]
[Result "1-0"]
[WhiteElo "2879"]
[BlackElo "2578"]
[TimeControl "180+1"]
[EndTime "9:07:56 PST"]
[Termination "mbojan won by resignation"]

1. Nf3 {[%clk 0:03:00.9]} 1... d5 {[%clk 0:03:00]} 2. g3 {[%clk 0:03:01.1]} 2...
e6 {[%clk 0:02:59.9]} 3. Bg2 {[%clk 0:03:00.8]} 3... Nf6 {[%clk 0:03:00.3]} 4.
O-O {[%clk 0:03:01.2]} 4... Be7 {[%clk 0:03:01.2]} 5. d3 {[%clk 0:03:01.9]} 5...
b6 {[%clk 0:03:01.2]} 6. c4 {[%clk 0:02:57.5]} 6... Bb7 {[%clk 0:03:01.6]} 7.
cxd5 {[%clk 0:02:52.9]} 7... exd5 {[%clk 0:03:00.8]} 8. Nd4 {[%clk 0:02:50.4]}
8... O-O {[%clk 0:02:59.2]} 9. Nf5 {[%clk 0:02:49.5]} 9... Re8 {[%clk
0:02:56.2]} 10. Nxe7+ {[%clk 0:02:36.8]} 10... Qxe7 {[%clk 0:02:55]} 11. Nc3
{[%clk 0:02:37.1]} 11... c5 {[%clk 0:02:51.3]} 12. Bg5 {[%clk 0:02:33.6]} 12...
Nbd7 {[%clk 0:02:11.5]} 13. Nxd5 {[%clk 0:02:15.7]} 13... Bxd5 {[%clk
0:02:11.2]} 14. Bxd5 {[%clk 0:02:16.6]} 14... Rad8 {[%clk 0:02:11.4]} 15. Bf3
{[%clk 0:02:00.7]} 15... Qe5 {[%clk 0:02:03.8]} 16. Qc1 {[%clk 0:01:55.8]} 16...
h6 {[%clk 0:02:01.6]} 17. Bd2 {[%clk 0:01:52.9]} 17... Nf8 {[%clk 0:01:56.5]}
18. Bc3 {[%clk 0:01:53]} 18... Qd6 {[%clk 0:01:52.3]} 19. a4 {[%clk 0:01:46.3]}
19... a5 {[%clk 0:01:51.1]} 20. Ra3 {[%clk 0:01:30.5]} 20... Nd5 {[%clk
0:01:47.4]} 21. Re1 {[%clk 0:01:22.4]} 21... Ne6 {[%clk 0:01:37.7]} 22. Ra1
{[%clk 0:01:21.6]} 22... Ng5 {[%clk 0:01:32.2]} 23. Bg2 {[%clk 0:01:21.6]} 23...
Re7 {[%clk 0:01:21.5]} 24. Bd2 {[%clk 0:01:20.8]} 24... Ne6 {[%clk 0:01:15.7]}
25. Qc4 {[%clk 0:01:19.6]} 25... Ndc7 {[%clk 0:01:04.8]} 26. Bc3 {[%clk
0:01:17.3]} 26... Rde8 {[%clk 0:01:01.7]} 27. e3 {[%clk 0:01:16.9]} 27... Rd8
{[%clk 0:00:46.5]} 28. Red1 {[%clk 0:01:17.1]} 28... Nd5 {[%clk 0:00:38.3]} 29.
d4 {[%clk 0:01:13.5]} 29... Nb4 {[%clk 0:00:27.2]} 30. Bxb4 {[%clk 0:01:09.3]}
30... cxb4 {[%clk 0:00:26.9]} 31. Rac1 {[%clk 0:00:56.6]} 31... Rc7 {[%clk
0:00:26]} 32. Qf1 {[%clk 0:00:57.3]} 32... Rdc8 {[%clk 0:00:25.6]} 33. Bh3
{[%clk 0:00:58]} 33... Qd7 {[%clk 0:00:19.8]} 34. Rxc7 {[%clk 0:00:55.9]} 34...
Rxc7 {[%clk 0:00:19.2]} 35. d5 {[%clk 0:00:48.3]} 1-0

[Event "Early-Titled-Tuesday-Blitz-January-30-2024"]
[Site "Chess.com"]
[Date "2024.01.30"]
[Round "6"]
[White "KubaGepard"]
[Black "Zohid6"]
[Result "0-1"]
[WhiteElo "2556"]
[BlackElo "2867"]
[TimeControl "180+1"]
[EndTime "9:07:56 PST"]
[Termination "Zohid6 won by resignation"]

1. d4 {[%clk 0:03:00.9]} 1... Nf6 {[%clk 0:02:58.2]} 2. Nf3 {[%clk 0:03:00.8]}
2... b6 {[%clk 0:02:53.5]} 3. g3 {[%clk 0:02:50.7]} 3... Bb7 {[%clk 0:02:53.7]}
4. Bg2 {[%clk 0:02:51.3]} 4... c5 {[%clk 0:02:54.2]} 5. c3 {[%clk 0:02:46.7]}
5... g6 {[%clk 0:02:53.4]} 6. O-O {[%clk 0:02:46]} 6... Bg7 {[%clk 0:02:53.9]}
7. Qb3 {[%clk 0:02:43.9]} 7... O-O {[%clk 0:02:53.6]} 8. dxc5 {[%clk 0:02:43.6]}
8... Bd5 {[%clk 0:02:46.3]} 9. c4 {[%clk 0:02:42.7]} 9... Bc6 {[%clk 0:02:46.5]}
10. cxb6 {[%clk 0:02:40.5]} 10... axb6 {[%clk 0:02:47.4]} 11. Nc3 {[%clk
0:02:38.9]} 11... Na6 {[%clk 0:02:47.1]} 12. Be3 {[%clk 0:02:37.6]} 12... Nc5
{[%clk 0:02:47]} 13. Bxc5 {[%clk 0:02:37.3]} 13... bxc5 {[%clk 0:02:47.9]} 14.
Rfd1 {[%clk 0:02:33.3]} 14... Qa5 {[%clk 0:02:46.9]} 15. Nb5 {[%clk 0:02:28.6]}
15... d5 {[%clk 0:02:43.1]} 16. a4 {[%clk 0:02:00]} 16... d4 {[%clk 0:02:39.3]}
17. Ne5 {[%clk 0:01:56.7]} 17... Bxg2 {[%clk 0:02:38.1]} 18. Kxg2 {[%clk
0:01:57.6]} 18... Rac8 {[%clk 0:02:34]} 19. Qf3 {[%clk 0:01:54.7]} 19... Rfe8
{[%clk 0:02:25.5]} 20. b3 {[%clk 0:01:52]} 20... e6 {[%clk 0:02:17.8]} 21. h4
{[%clk 0:01:48.2]} 21... Qa6 {[%clk 0:02:08.7]} 22. g4 {[%clk 0:01:35]} 22...
Rf8 {[%clk 0:02:05.4]} 23. h5 {[%clk 0:01:21.9]} 23... Nxh5 {[%clk 0:01:48.8]}
24. Nd7 {[%clk 0:01:12.6]} 24... Rfd8 {[%clk 0:01:48.8]} 25. gxh5 {[%clk
0:01:03.1]} 25... Rxd7 {[%clk 0:01:48.4]} 26. hxg6 {[%clk 0:01:03.5]} 26... fxg6
{[%clk 0:01:46.7]} 27. Rd3 {[%clk 0:01:00.3]} 27... Rf8 {[%clk 0:01:46.4]} 28.
Qe4 {[%clk 0:01:00.3]} 28... Rdf7 {[%clk 0:01:45.7]} 29. Rf3 {[%clk 0:00:59.7]}
29... Rxf3 {[%clk 0:01:44.1]} 30. exf3 {[%clk 0:00:59.9]} 30... e5 {[%clk
0:01:42.6]} 31. Qd5+ {[%clk 0:00:52.3]} 31... Kh8 {[%clk 0:01:41.5]} 32. Qd6
{[%clk 0:00:52.6]} 32... Qb7 {[%clk 0:01:37.9]} 33. Qd5 {[%clk 0:00:50.2]} 33...
Qe7 {[%clk 0:01:38.2]} 34. a5 {[%clk 0:00:47.3]} 34... Qg5+ {[%clk 0:01:38.3]}
35. Kf1 {[%clk 0:00:46.9]} 35... Qh5 {[%clk 0:01:28.7]} 36. Ke2 {[%clk
0:00:41.5]} 36... d3+ {[%clk 0:01:28.6]} 37. Kd2 {[%clk 0:00:24.9]} 37... Qg5+
{[%clk 0:01:23.7]} 38. Kxd3 {[%clk 0:00:18]} 38... e4+ {[%clk 0:01:22.6]} 39.
fxe4 {[%clk 0:00:18.4]} 39... Rf3+ {[%clk 0:01:15.6]} 40. Ke2 {[%clk 0:00:17.3]}
40... Qg4 {[%clk 0:01:15.8]} 41. Rg1 {[%clk 0:00:13.5]} 41... Rg3+ {[%clk
0:01:07.5]} 42. Kd2 {[%clk 0:00:11.1]} 42... Bh6+ {[%clk 0:01:08]} 43. Kc2
{[%clk 0:00:10.8]} 43... Qe2+ {[%clk 0:01:07.9]} 0-1

[Event "Early-Titled-Tuesday-Blitz-January-30-2024"]
[Site "Chess.com"]
[Date "2024.01.30"]
[Round "6"]
[White "Druid24"]
[Black "JeFumeDesClopes"]
[Result "0-1"]
[WhiteElo "2703"]
[BlackElo "2573"]
[TimeControl "180+1"]
[EndTime "9:07:56 PST"]
[Termination "JeFumeDesClopes won by resignation"]

1. e4 {[%clk 0:03:00.2]} 1... g6 {[%clk 0:02:59.9]} 2. d4 {[%clk 0:03:00.3]}
2... Bg7 {[%clk 0:03:00.1]} 3. Nc3 {[%clk 0:03:01.2]} 3... d6 {[%clk 0:03:00]}
4. Be3 {[%clk 0:03:01.7]} 4... a6 {[%clk 0:02:59.9]} 5. f3 {[%clk 0:03:02.2]}
5... b5 {[%clk 0:03:00.1]} 6. Qd2 {[%clk 0:03:03.1]} 6... Nd7 {[%clk 0:03:00.4]}
7. h4 {[%clk 0:03:02.5]} 7... h5 {[%clk 0:03:00.2]} 8. Nge2 {[%clk 0:03:02.3]}
8... Bb7 {[%clk 0:02:54.8]} 9. O-O-O {[%clk 0:03:02.4]} 9... c5 {[%clk
0:02:54.1]} 10. Kb1 {[%clk 0:03:02.4]} 10... Rc8 {[%clk 0:02:53.6]} 11. g4
{[%clk 0:03:02.7]} 11... hxg4 {[%clk 0:02:50]} 12. fxg4 {[%clk 0:03:03.6]} 12...
Ngf6 {[%clk 0:02:50.4]} 13. Bg2 {[%clk 0:02:55]} 13... b4 {[%clk 0:02:28.2]} 14.
Nd5 {[%clk 0:02:55]} 14... Bxd5 {[%clk 0:02:24.7]} 15. exd5 {[%clk 0:02:55.9]}
15... Nxg4 {[%clk 0:02:23.2]} 16. Bh3 {[%clk 0:02:49.9]} 16... Nxe3 {[%clk
0:02:15]} 17. Qxe3 {[%clk 0:02:50.8]} 17... Rc7 {[%clk 0:01:58.5]} 18. dxc5
{[%clk 0:02:38.9]} 18... Rxc5 {[%clk 0:01:47.2]} 19. Qe4 {[%clk 0:02:25.6]}
19... Nf6 {[%clk 0:01:39.1]} 20. Qxb4 {[%clk 0:02:22.8]} 20... Rh5 {[%clk
0:01:35.9]} 21. Nf4 {[%clk 0:02:21.2]} 21... Rxh4 {[%clk 0:01:32.1]} 22. Bd7+
{[%clk 0:02:10.4]} 22... Nxd7 {[%clk 0:01:29.8]} 23. Rxh4 {[%clk 0:02:11.3]}
23... Rb5 {[%clk 0:01:26.7]} 24. Qa4 {[%clk 0:02:03.5]} 24... Nc5 {[%clk
0:01:21.1]} 25. Qc4 {[%clk 0:02:02.2]} 25... Rxb2+ {[%clk 0:01:20.8]} 26. Kc1
{[%clk 0:02:02.7]} 26... Qa5 {[%clk 0:00:58.6]} 27. a4 {[%clk 0:01:42.1]} 27...
Rb4 {[%clk 0:00:50.9]} 28. Ne2 {[%clk 0:00:27.1]} 28... Rxc4 {[%clk 0:00:50.2]}
29. Rxc4 {[%clk 0:00:28]} 29... Nxa4 {[%clk 0:00:47]} 30. Nd4 {[%clk 0:00:26.1]}
30... Nc3 {[%clk 0:00:41.7]} 31. Rd3 {[%clk 0:00:20.8]} 31... Bxd4 {[%clk
0:00:40.5]} 32. Kd2 {[%clk 0:00:19.2]} 32... Be5 {[%clk 0:00:39.5]} 33. Rh3
{[%clk 0:00:17.6]} 33... Nxd5+ {[%clk 0:00:38]} 34. Kd1 {[%clk 0:00:16.9]} 34...
Qa1+ {[%clk 0:00:37.2]} 35. Ke2 {[%clk 0:00:17.5]} 35... Nf4+ {[%clk 0:00:36.6]}
0-1

[Event "Early-Titled-Tuesday-Blitz-January-30-2024"]
[Site "Chess.com"]
[Date "2024.01.30"]
[Round "6"]
[White "Vsevolod_Ovchinnikov"]
[Black "Durarbayli"]
[Result "0-1"]
[WhiteElo "2639"]
[BlackElo "2915"]
[TimeControl "180+1"]
[EndTime "9:07:57 PST"]
[Termination "Durarbayli won by resignation"]

1. g3 {[%clk 0:03:00.9]} 1... c5 {[%clk 0:02:57.8]} 2. Bg2 {[%clk 0:03:01.6]}
2... Nc6 {[%clk 0:02:58]} 3. c4 {[%clk 0:03:02.3]} 3... g6 {[%clk 0:02:58.3]} 4.
Nc3 {[%clk 0:03:03]} 4... Bg7 {[%clk 0:02:58.8]} 5. a3 {[%clk 0:03:03.7]} 5...
e6 {[%clk 0:02:56.7]} 6. Rb1 {[%clk 0:03:04.3]} 6... Nge7 {[%clk 0:02:55.6]} 7.
b4 {[%clk 0:03:04.9]} 7... d6 {[%clk 0:02:55.8]} 8. Nf3 {[%clk 0:03:01.9]} 8...
O-O {[%clk 0:02:55.6]} 9. O-O {[%clk 0:03:02.1]} 9... b6 {[%clk 0:02:55.5]} 10.
bxc5 {[%clk 0:02:46.3]} 10... dxc5 {[%clk 0:02:54.8]} 11. Bb2 {[%clk 0:02:46.4]}
11... Bb7 {[%clk 0:02:54.6]} 12. d3 {[%clk 0:02:46.6]} 12... Qd7 {[%clk
0:02:52.3]} 13. Nb5 {[%clk 0:02:43.6]} 13... e5 {[%clk 0:02:42.8]} 14. Nd2
{[%clk 0:02:37.4]} 14... Nd4 {[%clk 0:02:41.6]} 15. Bxb7 {[%clk 0:02:29.2]}
15... Qxb7 {[%clk 0:02:42.5]} 16. Bxd4 {[%clk 0:02:27.9]} 16... exd4 {[%clk
0:02:42.3]} 17. a4 {[%clk 0:02:28.4]} 17... Nc6 {[%clk 0:02:24.1]} 18. Na3
{[%clk 0:02:19.7]} 18... Qe7 {[%clk 0:02:22.1]} 19. Nb3 {[%clk 0:02:09.6]} 19...
Rae8 {[%clk 0:02:16.7]} 20. Rb2 {[%clk 0:02:08.2]} 20... f5 {[%clk 0:02:16.4]}
21. f4 {[%clk 0:02:07.6]} 21... g5 {[%clk 0:02:09.4]} 22. Kh1 {[%clk 0:01:38.5]}
22... gxf4 {[%clk 0:02:05.1]} 23. gxf4 {[%clk 0:01:39.4]} 23... Rf6 {[%clk
0:02:00.6]} 24. Rf2 {[%clk 0:01:33.3]} 24... Rg6 {[%clk 0:01:52.8]} 25. Qf1
{[%clk 0:01:29]} 25... Nb8 {[%clk 0:01:10.9]} 26. a5 {[%clk 0:01:17.9]} 26...
Nd7 {[%clk 0:01:10.9]} 27. Nc2 {[%clk 0:01:06.8]} 27... Nf6 {[%clk 0:01:10.1]}
28. h3 {[%clk 0:01:07.5]} 28... Nh5 {[%clk 0:01:09.5]} 29. Kh2 {[%clk
0:00:56.7]} 29... Bh6 {[%clk 0:01:06.3]} 30. Ne1 {[%clk 0:00:37.9]} 30... Qh4
{[%clk 0:01:01.9]} 31. axb6 {[%clk 0:00:13.3]} 31... axb6 {[%clk 0:01:01]} 32.
Nd2 {[%clk 0:00:07.2]} 32... Bxf4+ {[%clk 0:00:56.1]} 33. Rxf4 {[%clk
0:00:06.7]} 33... Rxe2+ {[%clk 0:00:46.7]} 34. Qxe2 {[%clk 0:00:03.6]} 34...
Qg3+ {[%clk 0:00:46.7]} 0-1

[Event "Early-Titled-Tuesday-Blitz-January-30-2024"]
[Site "Chess.com"]
[Date "2024.01.30"]
[Round "6"]
[White "dropstoneDP"]
[Black "Byniolus"]
[Result "1/2-1/2"]
[WhiteElo "3043"]
[BlackElo "2828"]
[TimeControl "180+1"]
[EndTime "9:07:58 PST"]
[Termination "Game drawn by repetition"]

1. e4 {[%clk 0:03:00.9]} 1... d5 {[%clk 0:03:00.2]} 2. exd5 {[%clk 0:03:00.2]}
2... Nf6 {[%clk 0:03:00.8]} 3. d4 {[%clk 0:02:57.1]} 3... Nxd5 {[%clk
0:03:01.1]} 4. Nf3 {[%clk 0:02:57.1]} 4... Bg4 {[%clk 0:03:00.8]} 5. Be2 {[%clk
0:02:53.7]} 5... e6 {[%clk 0:03:00.4]} 6. c4 {[%clk 0:02:53.5]} 6... Nb6 {[%clk
0:03:00.6]} 7. Nc3 {[%clk 0:02:51.9]} 7... Nc6 {[%clk 0:03:00.3]} 8. O-O {[%clk
0:02:17.1]} 8... Be7 {[%clk 0:02:56.4]} 9. d5 {[%clk 0:02:06.6]} 9... exd5
{[%clk 0:02:56]} 10. cxd5 {[%clk 0:02:07.5]} 10... Bxf3 {[%clk 0:02:55.9]} 11.
Bxf3 {[%clk 0:02:05.4]} 11... Ne5 {[%clk 0:02:56.1]} 12. Bf4 {[%clk 0:02:03.6]}
12... Nxf3+ {[%clk 0:02:48.7]} 13. Qxf3 {[%clk 0:02:04.5]} 13... O-O {[%clk
0:02:48.8]} 14. Rfd1 {[%clk 0:02:03.5]} 14... Bd6 {[%clk 0:02:45.1]} 15. Rac1
{[%clk 0:02:01.9]} 15... Qf6 {[%clk 0:01:58.8]} 16. Bxd6 {[%clk 0:01:57.6]}
16... Qxf3 {[%clk 0:01:59.7]} 17. gxf3 {[%clk 0:01:57.1]} 17... cxd6 {[%clk
0:02:00.6]} 18. Ne4 {[%clk 0:01:48.1]} 18... Rac8 {[%clk 0:01:50.5]} 19. Nxd6
{[%clk 0:01:46.2]} 19... Rxc1 {[%clk 0:01:49.4]} 20. Rxc1 {[%clk 0:01:47.1]}
20... Nxd5 {[%clk 0:01:50]} 21. Nxb7 {[%clk 0:01:46.5]} 21... Nf4 {[%clk
0:01:30.5]} 22. Rc4 {[%clk 0:01:45.2]} 22... g5 {[%clk 0:01:29.1]} 23. h4 {[%clk
0:01:45.6]} 23... Rb8 {[%clk 0:01:23.6]} 24. hxg5 {[%clk 0:01:36.7]} 24... Ne2+
{[%clk 0:01:19.2]} 25. Kf1 {[%clk 0:01:36.9]} 25... Rxb7 {[%clk 0:01:19.9]} 26.
Kxe2 {[%clk 0:00:31.2]} 26... Rxb2+ {[%clk 0:01:19.6]} 27. Ke3 {[%clk
0:00:30.9]} 27... Rxa2 {[%clk 0:01:19.8]} 28. f4 {[%clk 0:00:31.5]} 28... h6
{[%clk 0:01:09.4]} 29. gxh6 {[%clk 0:00:30.6]} 29... Ra6 {[%clk 0:01:05.3]} 30.
Rc8+ {[%clk 0:00:30.9]} 30... Kh7 {[%clk 0:01:05.4]} 31. Rc7 {[%clk 0:00:31.6]}
31... Rf6 {[%clk 0:00:54.4]} 32. Rxa7 {[%clk 0:00:30]} 32... Kxh6 {[%clk
0:00:54.8]} 33. Ke4 {[%clk 0:00:30.9]} 33... Kg7 {[%clk 0:00:54.4]} 34. f5
{[%clk 0:00:29]} 34... Rb6 {[%clk 0:00:54.4]} 35. Kf4 {[%clk 0:00:27.5]} 35...
Kf6 {[%clk 0:00:52.4]} 36. Ra4 {[%clk 0:00:27.8]} 36... Rc6 {[%clk 0:00:52.6]}
37. f3 {[%clk 0:00:28.2]} 37... Rb6 {[%clk 0:00:52.5]} 38. Kg4 {[%clk
0:00:28.6]} 38... Rc6 {[%clk 0:00:52.7]} 39. f4 {[%clk 0:00:29.2]} 39... Rb6
{[%clk 0:00:53]} 40. Rc4 {[%clk 0:00:29.6]} 40... Ra6 {[%clk 0:00:53.1]} 41. Rb4
{[%clk 0:00:29.9]} 41... Rc6 {[%clk 0:00:53.2]} 42. Rd4 {[%clk 0:00:30]} 42...
Rb6 {[%clk 0:00:53.1]} 43. Ra4 {[%clk 0:00:30]} 43... Rc6 {[%clk 0:00:53.4]} 44.
Rb4 {[%clk 0:00:30.4]} 44... Ra6 {[%clk 0:00:53.6]} 45. Rd4 {[%clk 0:00:30.5]}
45... Rc6 {[%clk 0:00:53.6]} 46. Rb4 {[%clk 0:00:30.5]} 46... Ra6 {[%clk
0:00:53.7]} 47. Rd4 {[%clk 0:00:31]} 47... Rc6 {[%clk 0:00:54]} 48. Rb4 {[%clk
0:00:31.4]} 1/2-1/2

[Event "Early-Titled-Tuesday-Blitz-January-30-2024"]
[Site "Chess.com"]
[Date "2024.01.30"]
[Round "6"]
[White "averageFM"]
[Black "hasagoodchesser"]
[Result "0-1"]
[WhiteElo "2570"]
[BlackElo "2743"]
[TimeControl "180+1"]
[EndTime "9:07:59 PST"]
[Termination "hasagoodchesser won by resignation"]

1. d4 {[%clk 0:03:00.9]} 1... Nf6 {[%clk 0:02:45.6]} 2. Nc3 {[%clk 0:03:00.2]}
2... d5 {[%clk 0:02:43.3]} 3. e4 {[%clk 0:02:59.3]} 3... Nxe4 {[%clk 0:02:41.1]}
4. Nxe4 {[%clk 0:02:57.8]} 4... dxe4 {[%clk 0:02:42]} 5. Be3 {[%clk 0:02:58.2]}
5... Bf5 {[%clk 0:02:38.8]} 6. Qd2 {[%clk 0:02:57.1]} 6... e6 {[%clk 0:02:38]}
7. O-O-O {[%clk 0:02:53.8]} 7... Be7 {[%clk 0:02:36.5]} 8. f3 {[%clk 0:02:52.6]}
8... Nc6 {[%clk 0:02:28]} 9. g4 {[%clk 0:02:45.3]} 9... Bg6 {[%clk 0:02:26.9]}
10. Bb5 {[%clk 0:02:45]} 10... a6 {[%clk 0:02:19.3]} 11. Bxc6+ {[%clk
0:02:42.4]} 11... bxc6 {[%clk 0:02:20.2]} 12. h4 {[%clk 0:02:39.8]} 12... h5
{[%clk 0:02:19.2]} 13. g5 {[%clk 0:02:35.4]} 13... Qd5 {[%clk 0:02:18.8]} 14.
fxe4 {[%clk 0:02:21.5]} 14... Bxe4 {[%clk 0:02:09.8]} 15. Rh2 {[%clk 0:02:17.6]}
15... Qxa2 {[%clk 0:02:07.1]} 16. Qc3 {[%clk 0:02:17.2]} 16... Rb8 {[%clk
0:01:58.3]} 17. d5 {[%clk 0:01:52.6]} 17... Bxd5 {[%clk 0:01:43.8]} 18. Qxg7
{[%clk 0:01:41.2]} 18... Rf8 {[%clk 0:01:41]} 19. Bd4 {[%clk 0:01:32.3]} 19...
Qa1+ {[%clk 0:01:02.5]} 20. Kd2 {[%clk 0:01:31.2]} 20... Bb4+ {[%clk 0:01:02.6]}
21. Bc3 {[%clk 0:01:06.1]} 21... Qxb2 {[%clk 0:01:00.2]} 22. Ne2 {[%clk
0:00:48.5]} 22... Bf3 {[%clk 0:00:44.5]} 23. Qd4 {[%clk 0:00:18.7]} 23... Bxc3+
{[%clk 0:00:19.5]} 24. Qxc3 {[%clk 0:00:18.7]} 24... Rd8+ {[%clk 0:00:17.8]} 25.
Ke1 {[%clk 0:00:12.9]} 25... Rxd1+ {[%clk 0:00:15.7]} 0-1

[Event "Early-Titled-Tuesday-Blitz-January-30-2024"]
[Site "Chess.com"]
[Date "2024.01.30"]
[Round "6"]
[White "blitzking1729"]
[Black "Herzog2012"]
[Result "1-0"]
[WhiteElo "2708"]
[BlackElo "2554"]
[TimeControl "180+1"]
[EndTime "9:08:02 PST"]
[Termination "blitzking1729 won by resignation"]

1. c4 {[%clk 0:03:00.9]} 1... e5 {[%clk 0:02:57.1]} 2. Nc3 {[%clk 0:02:59.8]}
2... Nf6 {[%clk 0:02:56.9]} 3. Nf3 {[%clk 0:03:00.1]} 3... Nc6 {[%clk
0:02:53.9]} 4. e3 {[%clk 0:03:00.5]} 4... Bb4 {[%clk 0:02:51.2]} 5. Qc2 {[%clk
0:02:58.1]} 5... Bxc3 {[%clk 0:02:49.4]} 6. Qxc3 {[%clk 0:02:57.9]} 6... Qe7
{[%clk 0:02:49.9]} 7. d4 {[%clk 0:02:58]} 7... exd4 {[%clk 0:02:48.7]} 8. Nxd4
{[%clk 0:02:57.5]} 8... Ne5 {[%clk 0:02:49.1]} 9. Be2 {[%clk 0:02:49.7]} 9... d5
{[%clk 0:02:41.5]} 10. cxd5 {[%clk 0:02:47.6]} 10... Nxd5 {[%clk 0:02:42.4]} 11.
Qb3 {[%clk 0:02:47]} 11... c6 {[%clk 0:02:13.2]} 12. Bd2 {[%clk 0:02:43.1]}
12... O-O {[%clk 0:02:08.1]} 13. O-O {[%clk 0:02:43]} 13... Rd8 {[%clk
0:02:04.7]} 14. Rfd1 {[%clk 0:02:40.3]} 14... c5 {[%clk 0:02:03.5]} 15. Nf3
{[%clk 0:02:37.5]} 15... b6 {[%clk 0:02:00.2]} 16. Bc3 {[%clk 0:02:06.7]} 16...
Nxc3 {[%clk 0:01:05.7]} 17. Rxd8+ {[%clk 0:02:03]} 17... Qxd8 {[%clk 0:01:06.6]}
18. Qxc3 {[%clk 0:02:02.3]} 18... Nxf3+ {[%clk 0:01:05]} 19. Bxf3 {[%clk
0:02:02.5]} 19... Rb8 {[%clk 0:01:05.6]} 20. Rd1 {[%clk 0:02:01.1]} 20... Qf8
{[%clk 0:00:49.9]} 21. a3 {[%clk 0:01:57.5]} 21... Be6 {[%clk 0:00:46.3]} 22.
Qd3 {[%clk 0:01:57.3]} 22... Qe7 {[%clk 0:00:36.3]} 23. h3 {[%clk 0:01:56.5]}
23... g6 {[%clk 0:00:29.2]} 24. g3 {[%clk 0:01:54.1]} 24... Kg7 {[%clk
0:00:28.7]} 25. h4 {[%clk 0:01:54.1]} 25... h6 {[%clk 0:00:27.9]} 26. Kg2 {[%clk
0:01:52]} 26... Qf6 {[%clk 0:00:26.6]} 27. b4 {[%clk 0:01:50.3]} 27... c4 {[%clk
0:00:24.9]} 28. Qd6 {[%clk 0:01:43.9]} 28... Rc8 {[%clk 0:00:16.3]} 29. Bb7
{[%clk 0:01:43.2]} 29... Rf8 {[%clk 0:00:08.9]} 30. Qc7 {[%clk 0:01:40.8]} 30...
g5 {[%clk 0:00:03.7]} 31. Rd4 {[%clk 0:01:37.6]} 31... Qf5 {[%clk 0:00:02.2]}
32. Be4 {[%clk 0:01:26.6]} 32... Qf6 {[%clk 0:00:02]} 33. Bd5 {[%clk 0:01:22.2]}
33... Bxd5+ {[%clk 0:00:01.6]} 34. Rxd5 {[%clk 0:01:22.4]} 34... Qe6 {[%clk
0:00:02.1]} 35. Qxc4 {[%clk 0:01:21.2]} 35... Rc8 {[%clk 0:00:02.2]} 36. Qd4+
{[%clk 0:01:21.2]} 36... Qf6 {[%clk 0:00:02.7]} 37. hxg5 {[%clk 0:01:20]} 37...
Qxd4 {[%clk 0:00:02.9]} 38. gxh6+ {[%clk 0:01:20.3]} 38... Kxh6 {[%clk
0:00:03.4]} 39. Rxd4 {[%clk 0:01:20.6]} 39... Rc3 {[%clk 0:00:04]} 40. Rd7
{[%clk 0:01:20.7]} 40... Rxa3 {[%clk 0:00:02.8]} 41. Rxf7 {[%clk 0:01:21.3]}
41... a6 {[%clk 0:00:02.9]} 42. Rb7 {[%clk 0:01:21.2]} 42... b5 {[%clk
0:00:02.4]} 43. g4 {[%clk 0:01:21.1]} 43... Kg5 {[%clk 0:00:02.6]} 44. Kg3
{[%clk 0:01:21.2]} 44... Ra4 {[%clk 0:00:03]} 45. Rb6 {[%clk 0:01:21.3]} 1-0